Cogmind - Beta 12 @@@ ROGUE MODE // 2023.10.17 @ 14:03:33 Player: Beans Result: Self-destructed Performance ------------- Evolutions (1) 500 Regions Visited (3) 600 Robots Destroyed (11) 55 Value Destroyed (158) 158 Prototype IDs (0) 0 Alien Tech Used (0) 0 Bonus (0) 0 TOTAL SCORE: 1313 Bonus ------- None Cogmind --------- Core Integrity 331/400 Matter 300/300 Energy 263/265 System Corruption 1% Temperature Critical (504) Movement Walking (120) Location -9/Materials Parts ------- > --- POWER (1) -------- Improved Ion Engine > --- PROPULSION (3) --- Aluminum Leg Aluminum Leg > --- UTILITY (3) ------ Terrain Scan Processor Light Armor Plating > --- WEAPON (2) ------- Medium Laser Medium Laser > --- INVENTORY (5) ---- Heat Sink Small Storage Unit Experimental Sensor Array Peak State ------------ > --- POWER ------------ Improved Ion Engine > --- PROPULSION ------- Aluminum Leg Aluminum Leg > --- UTILITY ---------- Improved Terrain Scanner Terrain Scan Processor Light Armor Plating > --- WEAPON ----------- Medium Laser Medium Laser > --- INVENTORY -------- Ion Engine Heat Sink Small Storage Unit Experimental Sensor Array [Rating: 13] Favorites ----------- Power Ion Engine Engine Ion Engine Propulsion Aluminum Leg Leg Aluminum Leg Utility Improved Terrain Scanner Device Improved Terrain Scanner Storage Small Storage Unit Processor Terrain Scan Processor Protection Light Armor Plating Weapon Medium Laser Energy Gun Medium Laser Build | -11 -10 -10 -9 ------- Run | Jun Mat Min Mat Slots Evolved 2 | . . . 2 Power . | . . . . Propulsion 1 | . . . 1 Utility 1 | . . . 1 Weapon . | . . . . Parts Attached 11 | 7 1 2 1 Power 2 | 1 . 1 . Engine 2 | 1 . 1 . Core . | . . . . Reactor . | . . . . Propulsion 2 | 2 . . . Treads . | . . . . Leg 2 | 2 . . . Wheel . | . . . . Hover . | . . . . Flight . | . . . . Utility 5 | 2 1 1 1 Device 2 | 1 1 . . Storage 1 | 1 . . . Processor 1 | . . 1 . Hackware . | . . . . Protection 1 | . . . 1 Artifact . | . . . . Weapon 2 | 2 . . . Energy Gun 2 | 2 . . . Energy Cannon . | . . . . Ballistic Gun . | . . . . Ballistic Cannon . | . . . . Launcher . | . . . . Special Weapon . | . . . . Impact Weapon . | . . . . Slashing Weapon . | . . . . Piercing Weapon . | . . . . Special Melee Weapon . | . . . . Unidentified Prototypes . | . . . . Parts Lost 1 | . . . 1 Power . | . . . . Propulsion . | . . . . Utility 1 | . . . 1 Weapon . | . . . . Highest Loss Streak 1 | . . . 1 To Critical Strikes . | . . . . Average Slot Usage (%) 97 | . 97 100 88 Engine 13 | . 14 14 11 Leg 26 | . 28 28 22 Device 12 | . 11 14 11 Storage 8 | . 14 7 . Processor 5 | . . 6 11 Protection 1 | . . . 11 Energy Gun 26 | . 28 28 22 Naked Turns . | . . . . Heaviest Build 17 | 15 15 17 15 Greatest Support 20 | 20 20 20 20 Greatest Overweight (x) . | . . . . Average Overweight (x) . | . . . . Largest Inventory Capacity 8 | 8 8 8 5 Average Capacity 6 | 7 8 6 5 Most Carried 8 | 4 6 8 4 Average Carried 4 | 2 4 6 3 Final Capacity 8 | 8 8 5 5 Final Carried 6 | 4 6 5 3 Class Distribution -------------------- 100% | Mutant Dominant Class ---------------- Mutant | -10/Materials Mutant | -10/Mines Mutant | -9/Materials Resources | -11 -10 -10 -9 ----------- Run | Jun Mat Min Mat Matter Collected 306 | 221 49 36 . Remotely . | . . . . Salvage Created 266 | 77 . 189 . Parts 24 | 8 . 16 . Haulers Intercepted . | . . . . Recyclers Shooed . | . . . . Parts Field Recycled . | . . . . Retrieved Matter . | . . . . Parts Self-Destructed . | . . . . Prevented . | . . . . Kills | -11 -10 -10 -9 ------- Run | Jun Mat Min Mat Combat Hostiles Destroyed 5 | . . 5 . Guns 5 | . . 5 . Classes Destroyed 4 | 1 . 3 . Builder 2 | . . 2 . Tunneler 4 | 4 . . . Swarmer 3 | . . 3 . Sentry 2 | . . 2 . Best Kill Streak 4 | 2 . 4 . Combat Bots Only 3 | . . 3 . Max Kills in Single Turn 2 | 2 . 1 . Gunslinging . | . . . . Exploded . | . . . . Melee . | . . . . Uniques/NPCs Destroyed . | . . . . Combat | -11 -10 -10 -9 -------- Run | Jun Mat Min Mat Damage Taken 530 | . . 139 391 Core 105 | . . 36 69 Absorbed by Shields . | . . . . Regen/Repaired (Parts) 4 | . 4 . . Core Remaining (%) 92 | 100 . 85 . Volleys Fired 36 | 9 . 12 15 Largest 2 | 2 . 2 2 Hottest 100 | 100 . 100 100 Shots Fired 70 | 18 . 24 28 Gun 70 | 18 . 24 28 Cannon . | . . . . Launcher . | . . . . Special . | . . . . Kinetic . | . . . . Thermal 70 | 18 . 24 28 Explosive . | . . . . Electromagnetic . | . . . . Robot Hit Streak 14 | 6 . 14 3 Robot Miss Streak 3 | 2 . 3 1 Penetration Max . | . . . . Secondary Targets 1 | . . 1 . Max Gunslinging Chain 1 | . . 1 . Shots Hit Robots 37 | 11 . 17 9 Core Hits 14 | 4 . 9 1 Critical Kills . | . . . . Critical Parts Destroyed . | . . . . Critical Strikes 2 | 2 . . . Burn 2 | 2 . . . Melee Attacks . | . . . . Impact . | . . . . Slashing . | . . . . Piercing . | . . . . Sneak Attacks . | . . . . Combat Hostiles . | . . . . Follow-up Attacks . | . . . . Damage Inflicted 484 | 153 . 228 103 Guns 469 | 153 . 216 100 Cannons . | . . . . Explosions . | . . . . Melee . | . . . . Ramming 15 | . . 12 3 Kinetic . | . . . . Thermal 469 | 153 . 216 100 Explosive . | . . . . Electromagnetic . | . . . . Impact . | . . . . Slashing . | . . . . Piercing . | . . . . Highest Corruption 2 | . 2 2 1 Average Corruption 1 | . 2 2 1 Corruption Purged . | . . . . Corruption Blocked . | . . . . Effects 10 | . 2 7 1 Message Errors 2 | . 1 1 . Matter Fused 1 | . 1 . . Heat Flow Errors 3 | . . 3 . Energy Discharges 3 | . . 2 1 Alerts 1 | . . 1 . Overload Shots . | . . . . Overflow Damage . | . . . . Projectiles . | . . . . Explosions . | . . . . Melee . | . . . . Knockbacks . | . . . . Impact . | . . . . Kinetic . | . . . . Secondary . | . . . . Self-Inflicted Damage . | . . . . Shots . | . . . . Rammed . | . . . . Targets Rammed 3 | . . 1 2 Kicked 3 | . . 1 2 Crushed . | . . . . Highest Temperature 498 | 195 . 269 498 Average Temperature 130 | 86 . 130 167 Received Heat Transfer 237 | . . 27 210 Effects 7 | . . 5 2 Shutdowns 1 | . . . 1 Interference 5 | . . 5 . Short Circuit 1 | . . . 1 Siege Activations . | . . . . Robots Corrupted . | . . . . Combat Hostiles . | . . . . Parts Fried . | . . . . Impact Corruptions . | . . . . Robots Melted . | . . . . Combat Hostiles . | . . . . Parts Melted 6 | 2 . 4 . Heat Transferred 1517 | 592 . 629 296 Parts Sabotaged . | . . . . Parts Stolen . | . . . . Parts Stripped . | . . . . Power Chain Reactions . | . . . . Missiles Intercepted . | . . . . Alert | -11 -10 -10 -9 ------- Run | Jun Mat Min Mat Peak Influence 151 | 20 18 151 30 Initial 13 | . 13 6 . Average 34 | 7 15 63 16 Maximum Alert Level . | . . . . Low Security (%) 100 | 100 100 100 100 Level 1 . | . . . . Level 2 . | . . . . Level 3 . | . . . . Level 4 . | . . . . Level 5 . | . . . . High Security . | . . . . Max Security . | . . . . Squads Dispatched 2 | . . . 2 Investigation . | . . . . Extermination . | . . . . Reinforcement 2 | . . . 2 Assault . | . . . . Garrison . | . . . . Intercept . | . . . . Searches Triggered . | . . . . Construction Impeded . | . . . . Haulers Reinforced . | . . . . Active Scanning Responses . | . . . . Cargo Convoy Interrupts . | . . . . Stealth | -11 -10 -10 -9 --------- Run | Jun Mat Min Mat Distress Signals 1 | . . . 1 Communications Jammed . | . . . . Distress Signals . | . . . . Times Spotted 17 | . . 5 12 Peak Tracking Total 10 | . . 3 10 Tactical Retreats 1 | . . . 1 Traps | -11 -10 -10 -9 ------- Run | Jun Mat Min Mat Traps Triggered 2 | . 1 . 1 Indirectly . | . . . . Trap Hack Attempts . | . . . . Triggered . | . . . . Disarmed . | . . . . Reprogrammed . | . . . . Reused 1 | . . 1 . Traps Extracted . | . . . . Installed 2 | . . 2 . Triggered 1 | . . 1 . Most Traps Carried 2 | . . 2 . Machines | -11 -10 -10 -9 ---------- Run | Jun Mat Min Mat Machines Disabled . | . . . . Max in Single Turn . | . . . . Machines Repaired . | . . . . Machines Sabotaged . | . . . . Overloaded Fab Kills . | . . . . Hacking | -11 -10 -10 -9 --------- Run | Jun Mat Min Mat Machines Accessed 4 | . 1 1 2 Terminals 2 | . . . 2 Fabricators . | . . . . Repair Stations 1 | . 1 . . Recycling Units . | . . . . Scanalyzers . | . . . . Garrison Access . | . . . . Total Hacks 9 | . 2 1 6 Successful 4 | . 2 1 1 Failed 5 | . . . 5 Catastrophic 2 | . . . 2 Database Lockouts . | . . . . Manual 3 | . . . 3 Terminals 6 | . . . 6 Fabricators . | . . . . Repair Stations 2 | . 2 . . Recycling Units . | . . . . Scanalyzers . | . . . . Garrison Access . | . . . . Terminal Hacks 1 | . . 1 . Open Door 1 | . . 1 . Fabricator Hacks . | . . . . Repair Station Hacks 2 | . 2 . . Scan Component 1 | . 1 . . Repair 1 | . 1 . . Recycling Unit Hacks . | . . . . Scanalyzer . | . . . . Garrison Access Hacks . | . . . . Unauthorized Hacks 1 | . . . 1 Terminals 1 | . . . 1 Botnet 1 | . . . 1 Fabricators . | . . . . Repair Stations . | . . . . Recycling Units . | . . . . Scanalyzers . | . . . . Garrison Access . | . . . . Data Cores Recovered . | . . . . Used . | . . . . Hacking Detections 3 | . 1 . 2 Full Trace Events . | . . . . Feedback Events . | . . . . Feedback Blocked . | . . . . Robot Schematics Acquired . | . . . . Robots Built . | . . . . Authchips . | . . . . Time . | . . . . Total Robot Build Rating . | . . . . Part Schematics Acquired . | . . . . Parts Built . | . . . . Authchips . | . . . . Time . | . . . . Total Part Build Rating . | . . . . Parts Repaired 1 | . 1 . . Time 38 | . 38 . . Parts Recycled . | . . . . Recycled Matter . | . . . . Retrieved Matter . | . . . . Retrieved Components . | . . . . Parts Scanalyzed . | . . . . Part Schematics Acquired . | . . . . Parts Damaged . | . . . . Bothacking | -11 -10 -10 -9 ------------ Run | Jun Mat Min Mat Used RIF Installer . | . . . . Robots Hacked . | . . . . Non-combat . | . . . . Combat . | . . . . Robot Hacks Applied . | . . . . Relay Couplers Released . | . . . . Fabnet Peak Effective % . | . . . . Robots Rewired . | . . . . Allies Hacked . | . . . . Hacks Repelled . | . . . . Allies | -11 -10 -10 -9 -------- Run | Jun Mat Min Mat Total Allies . | . . . . Largest Group . | . . . . Highest-Rated Group . | . . . . Highest-Rated Ally . | . . . . Total Orders . | . . . . Ally Attacks . | . . . . Total Damage . | . . . . Kills . | . . . . Allies Corrupted . | . . . . Allies Melted . | . . . . Intel | -11 -10 -10 -9 ------- Run | Jun Mat Min Mat Robot Analysis Total . | . . . . Derelict Logs Recovered 2 | . . 2 . Drone Launches . | . . . . Drone Recoveries . | . . . . Exploration | -11 -10 -10 -9 ------------- Run | Jun Mat Min Mat Turns Passed 935 | 159 240 405 131 Spaces Moved 620 | 100 160 290 70 Core 3 | 3 . . . Treads . | . . . . Legs 617 | 97 160 290 70 Wheels . | . . . . Hover . | . . . . Flight . | . . . . Fastest Speed 50 | 50 120 120 120 Average Speed 119 | 117 120 120 120 Slowest Speed 120 | 120 120 120 120 Overloaded Moves . | . . . . Propulsion Burnouts . | . . . . Robots Hopped . | . . . . Cave-ins Triggered . | . . . . Exploration Rate (%) 28 | 6 29 69 11 Regions Visited 3 Branch Regions 1 Pre-discovered Areas . | . . . . Known Exits Taken . | . . . . Unknown Exits Taken 3 | 1 1 1 . Scrap Searched . | . . . . Spaces Dug . | . . . . Terrain Destroyed . | . . . . Melee . | . . . . Projectile . | . . . . AOE . | . . . . Terrain Rammed . | . . . . Walls Destroyed . | . . . . Machines Disabled . | . . . . Actions | -11 -10 -10 -9 --------- Run | Jun Mat Min Mat Total 741 | 119 207 326 89 Wait 49 | . 45 4 . Move 617 | 99 159 289 70 Hop . | . . . . Pick Up 13 | 4 2 7 . Fast Attach 8 | 7 1 . . Attach 1 | . . . 1 Detach . | . . . . Swap 2 | . . 2 . Drop 10 | . . 9 1 Fire 36 | 9 . 12 15 Melee . | . . . . Ram . | . . . . Kick 3 | . . 1 2 Crush . | . . . . Escape Stasis . | . . . . Rewire . | . . . . Trap 2 | . . 2 . Miscellaneous . | . . . . Route ------- -11/Junkyard -10/Materials -10/Mines -9/Materials History --------- Turn | Location | Event 18 | -11/Junkyard | Discovered new exit (range 14) 160 | -11/Junkyard | Entered Materials 311 | -10/Materials | Repaired Imp. Terrain Scanner 332 | -10/Materials | Build established: Mutant 333 | -10/Materials | Discovered new exit (range 16) 400 | -10/Materials | Entered Mines 454 | -10/Mines | Found a hidden stash of uninstalled traps 480 | -10/Mines | Found a damaged Exp. Sensor Array with a note attached 483 | -10/Mines | Found Prototype Device 755 | -10/Mines | Learned 4 Materials zone layouts 770 | -10/Mines | Learned Materials terminal intel 783 | -10/Mines | Discovered new exit (range 8) 795 | -10/Mines | Found the Drone Emporium 805 | -10/Mines | Entered Materials 805 | -9/Materials | Evolved 2 slots: Propulsion x1, Utility x1 807 | -9/Materials | Loaded intel: 12 terminal locations 936 | -9/Materials | Self-destructed Last Messages --------------- 00832_ ALERT: Hostiles spotted, dispatching reinforcements to Terminal M011. 00832_ O-16 Technician locks terminal. 00832_ O-16 Technician cleans trojans from system. 00862_ K-01 Serf collects debris. 00866_ Kicked K-01 Serf. 00867_ K-01 Serf sends out distress signal. 00869_ Kicked O-16 Technician out of the way. 00870_ Triggered Shock Trap. 00870_ The floor emits a surge of raw power. 00870_ System corrupted (+1). 00898_ Connecting with Terminal... 00908_ System corrupted: Energy discharge (-100). 00908_ Dropped Ion Engine. 00912_ ALERT: Hostiles spotted, dispatching reinforcements to Terminal M008. 00931_ Med. Laser broken. 00931_ Overheating: Short circuit. 00934_ Power failure, Imp. Ion Engine shutdown. 00935_ Imp. Terrain Scanner destroyed. Map ----- +----------------------------------------------------+ | ???????????????????? """ """ ???? | | ???????????????????? "T" ???? | | ???????????????????? #??+?? | | ????????????????????##+##### #??? ? | | ???????????????????? "" # #?? | | ???????????????????? ""S # """ """ #? ??? | | ???????????????????? "" # """ """ #??"?? | | ???????????????????? # """ """ #???"? | | ???????????????????? # #???? | | ???????????????????? # #?#### | | ???????????????????? ######## ##### ##?##? | | ???????????????????? # ## #?### ##?### | | ????????????????##?? # ## ##?## ##??# | | ?????????????????###+####### " " # ##### ##### | | ???????????????#??## #?????# "R" ## ##?## #???# | | ?????????????#???#?? #?###?# """ ## #??## #???# | | ???????????????##?????#?#?## ?# ##?## #???# | | ????????????####???? ??#?####+##### #?#?# ##??# | | ???????????##?????#? #?### #?### | | ???????????????#?##??####?### ##### #???# #### | | ??????????#?#####?#? ? ######+##### #??## | | ???????????#???##???""??# # ##### | | ??????????????????? T" ?# g # ##### | | ??????????#?????? # ""??#gg""" # ############ | | ????????????# "???#?? ?#g""""" # ###?######### | | ???????????#??"????? ???#@""""" " # ###### # | | ???????????????""?#? ? ?#g""""" T # #???## # | | ???????????#??""??? ???## Y""" " # ##???# """ + | | ????????????????? ??????# g # ###?## """ # | | ???????????#?#???#?#?########+##### #?#?## """ # | | ????????????? #?#### # | | ?????????????? #######?#??######?## | | ???????????#?????# """ ###+####??##?#?##???#?#?# | | ?????????????????? ?""" ?????????? ?#?##??####?? | | ????????????##??#?? """ ?? ? ?????"? ?#??#????#??? | | ???????????????????? ?? ?? ?????"?? #???#???#?##? | | ?????????????????? ??? #? ?"?""?"? ??????#?????# | | ??????????????????#?????#??? ???"??????#?#???#???# | | ?????????????????????#??## ???"????????##???#?#?? | | ????????????????????#??#?# ??? ? ?????#???????#??? | | ????????????????????#?#?#??????#?????????????????? | | | | | | | | | | | | | | | | | | | +----------------------------------------------------+ Best States ------------- Heat Dissipation 28 Energy Generation 12 Energy Capacity 265 Matter Stores 300 Matter Capacity 300 Sight Range 16 Terrain Scan Range 16 Terrain Scan Density 85 Armor Coverage 150 Evasion (%) 55 Item Schematics ----------------- None Robot Schematics ------------------ None Fabricated ------------ Nothing Alien Tech Used ----------------- None Achievements -------------- None Challenges ------------ None Game ------ Seed CloakNavigationBarrier Manual? 0 Play Time 00:14:50 Cumulative 77.0 hours Start 2023.10.17 @ 13:50:44 End 2023.10.17 @ 14:03:33 Sessions 1 Manual Loads 0 Difficulty Rogue Special Mode None Game No. 72 Rogue 72 Adventurer 0 Explorer 0 Win Type - Total 0 Types 0/0/0/0/0/0/0/0/0 Lore% 26 Gallery% 39 Achievement% 33 Wizard Run 0 Options --------- ASCII 1 Keyboard 1 Movement Vi Keybinds 1 Fullscreen 2 Font 24/Smallcaps Map View 76x50 Tactical HUD 1 Map Filters NONE Filters NONE Steam 1 RUN: 59b0324d-7004-459b-bc8c-2e59461ed386